[Event "4NCL 2019-20"]
[Site "Daventry"]
[Date "2020.02.08"]
[Round "5"]
[White "Quinn, John M"]
[Black "Chow, Samuel"]
[Result "0-1"]
[ECO "D96"]
[WhiteElo "2139"]
[BlackElo "2317"]
[Annotator "ChessBase"]
[PlyCount "70"]
[EventDate "2020.01.11"]
[EventCountry "ENG"]
[SourceTitle "playchess.com"]
[Source "ChessBase"]
[SourceQuality "1"]
[TimeControl "40/6000:3000+30"]

1. d4 {[%emt 0:00:00]} Nf6 {[%emt 0:00:00]} 2. c4 {[%emt 0:00:00]} g6 {[%emt 0:00:00]} 3. Nc3 {[%emt 0:00:00]} d5 {[%emt 0:00:00]} 4. Nf3 {[%emt 0:00:00]} Bg7 {[%emt 0:00:00]} 5. Qb3 {[%emt 0:00:00]} dxc4 {[%emt 0:00:00]} 6. Qxc4 {[%emt 0:00:00]} Be6 {[%emt 0:00:00]} 7. Qb5+ {[%emt 0:00:12]} Bd7 {[%emt 0:00:00]} 8. Qd3 {[%emt 0:00:00]} c5 {[%emt 0:00:00]} 9. d5 {[%emt 0:01:27]} b5 {[%emt 0:00:00]} 10. e4 {[%emt 0:07:32]} b4 {[%emt 0:00:00]} 11. Nd1 {[%emt 0:03:19]} O-O {[%emt 0:18:49]} 12. Ne3 {[%emt 0:06:47]} e6 {[%emt 0:11:59]} 13. Be2 {[%emt 0:14:27]} Bc8 {[%emt 0:04:45]} 14. dxe6 {[%emt 0:11:45]} Bxe6 {[%emt 0:00:01]} 15. Ng5 {[%emt 0:00:09]} Qxd3 16. Bxd3 {[%emt 0:00:00]} Nc6 {[%emt 0:04:07]} 17. Nxe6 {[%emt 0:06:34]} fxe6 {[%emt 0:00:00]} 18. Bc4 {[%emt 0:00:00]} Nd4 {[%emt 0:00:16]} 19. f3 {[%emt 0:04:35]} Nd7 {[%emt 0:00:00]} 20. O-O {[%emt 0:02:42]} a5 {[%emt 0:08:48]} 21. Rd1 {[%emt 0:05:24]} Ne5 {[%emt 0:08:32]} 22. Bf1 {[%emt 0:01:02]} Rad8 {[%emt 0:02:20]} 23. Kh1 {[%emt 0:01:58]} b3 {[%emt 0:05:52]} 24. f4 {[%emt 0:09:48]} Nc2 {[%emt 0:09:11]} 25. Rxd8 {[%emt 0:12:00]} Rxd8 {[%emt 0:00:00]} 26. fxe5 {[%emt 0:01:04]} Nxa1 {[%emt 0:00:00]} 27. Bc4 {[%emt 0:00:00]} Kf7 {[%emt 0:04:14]} 28. axb3 {[%emt 0:00:20]} Bxe5 {[%emt 0:00:00]} 29. g3 {[%emt 0:00:51]} h5 {[%emt 0:03:20]} 30. Kg2 {[%emt 0:00:33]} Rb8 {[%emt 0:00:00]} 31. Nd1 {[%emt 0:03:57]} Nxb3 {[%emt 0:00:37]} 32. Be3 {[%emt 0:00:00]} a4 {[%emt 0:00:00]} 33. Kf2 {[%emt 0:02:19]} Bxb2 {[%emt 0:02:41]} 34. Nxb2 {[%emt 0:00:00]} a3 {[%emt 0:00:00]} 35. Bxb3 {[%emt 0:00:28]} Rxb3 {[%emt 0:00:00]} 0-1

[Event "4NCL 2019-20"]
[Site "Daventry"]
[Date "2020.02.08"]
[Round "5"]
[White "Ledger, Dave J"]
[Black "Eggleston, David J"]
[Result "1/2-1/2"]
[ECO "C11"]
[WhiteElo "2135"]
[BlackElo "2396"]
[Annotator "ChessBase"]
[PlyCount "123"]
[EventDate "2020.01.11"]
[EventCountry "ENG"]
[SourceTitle "playchess.com"]
[Source "ChessBase"]
[SourceQuality "1"]
[TimeControl "40/6000:3000+30"]

1. e4 {[%emt 0:00:00]} e6 {[%emt 0:00:00]} 2. d4 {[%emt 0:00:00]} d5 {[%emt 0:00:00]} 3. Nc3 {[%emt 0:00:00]} Nf6 {[%emt 0:00:00]} 4. e5 {[%emt 0:00:00]} Nfd7 {[%emt 0:00:00]} 5. f4 {[%emt 0:00:00]} c5 {[%emt 0:00:00]} 6. Nf3 {[%emt 0:00:00]} Nc6 {[%emt 0:00:00]} 7. Be3 {[%emt 0:00:00]} Be7 {[%emt 0:00:00]} 8. Qd2 {[%emt 0:00:11]} O-O {[%emt 0:00:00]} 9. dxc5 {[%emt 0:00:51]} Bxc5 {[%emt 0:00:00]} 10. Nd4 {[%emt 0:01:20]} a6 {[%emt 0:00:00]} 11. O-O-O {[%emt 0:01:14]} Nxd4 {[%emt 0:02:25]} 12. Bxd4 {[%emt 0:00:00]} b5 {[%emt 0:00:00]} 13. Qf2 {[%emt 0:02:11]} Qc7 {[%emt 0:05:38]} 14. Bd3 {[%emt 0:03:29]} b4 {[%emt 0:06:36]} 15. Na4 {[%emt 0:09:06]} Bxd4 {[%emt 0:00:28]} 16. Qxd4 {[%emt 0:00:00]} a5 {[%emt 0:00:00]} 17. Rhe1 {[%emt 0:01:48]} Ba6 {[%emt 0:01:11]} 18. Re2 {[%emt 0:07:26]} Rfc8 {[%emt 0:05:04]} 19. b3 {[%emt 0:03:50]} Qb7 {[%emt 0:05:17]} 20. f5 {[%emt 0:07:03]} exf5 {[%emt 0:04:13]} 21. e6 {[%emt 0:04:43]} fxe6 {[%emt 0:06:53]} 22. Rxe6 {[%emt 0:00:07]} Bxd3 {[%emt 0:01:26]} 23. Qxd3 {[%emt 0:09:44]} Nc5 {[%emt 0:07:03]} 24. Nxc5 {[%emt 0:06:08]} Rxc5 {[%emt 0:00:46]} 25. Rde1 {[%emt 0:03:41]} Qf7 {[%emt 0:06:25]} 26. Re7 {[%emt 0:11:15]} Qf6 {[%emt 0:06:52]} 27. Kb1 {[%emt 0:01:08]} h6 {[%emt 0:09:14]} 28. R1e6 {[%emt 0:13:52]} Qg5 {[%emt 0:07:05]} 29. Qd4 {[%emt 0:03:52]} Rac8 {[%emt 0:00:23]} 30. Re8+ {[%emt 0:03:05]} Kh7 {[%emt 0:00:52]} 31. Rxc8 {[%emt 0:00:30]} Rxc8 {[%emt 0:00:07]} 32. Qxd5 {[%emt 0:01:07]} Rd8 {[%emt 0:00:06]} 33. Qf3 {[%emt 0:00:29]} Rd2 {[%emt 0:07:28]} 34. h4 {[%emt 0:01:11]} Qg4 {[%emt 0:00:16]} 35. Qxg4 {[%emt 0:00:20]} fxg4 36. g3 {[%emt 0:00:10]} Rg2 {[%emt 0:02:13]} 37. Re3 {[%emt 0:00:04]} h5 {[%emt 0:00:53]} 38. c4 {[%emt 0:01:14]} bxc3 {[%emt 0:00:30]} 39. Rxc3 {[%emt 0:00:05]} g5 {[%emt 0:12:00]} 40. hxg5 {[%emt 0:00:15]} Kg6 {[%emt 0:00:27]} 41. a3 {[%emt 0:04:55]} Rf2 {[%emt 0:07:48]} 42. Kc1 {[%emt 0:08:02]} Rf5 {[%emt 0:04:49]} 43. b4 {[%emt 0:01:22]} axb4 {[%emt 0:01:05]} 44. axb4 {[%emt 0:00:04]} h4 {[%emt 0:18:38]} 45. gxh4 {[%emt 0:05:13]} Kh5 46. Kb2 {[%emt 0:13:00]} Kxh4 {[%emt 0:01:29]} 47. g6 {[%emt 0:00:16]} Rg5 {[%emt 0:01:13]} 48. Kb3 {[%emt 0:00:28]} g3 {[%emt 0:07:53]} 49. Rc1 {[%emt 0:00:28]} g2 {[%emt 0:00:20]} 50. Kc4 {[%emt 0:00:53]} g1=Q {[%emt 0:03:20]} 51. Rxg1 {[%emt 0:00:03]} Rxg1 {[%emt 0:00:04]} 52. b5 {[%emt 0:01:00]} Kh5 {[%emt 0:00:41]} 53. g7 {[%emt 0:01:03]} Kh6 {[%emt 0:02:31]} 54. Kc5 {[%emt 0:00:26]} Kxg7 {[%emt 0:00:07]} 55. b6 {[%emt 0:00:03]} Kf7 {[%emt 0:00:42]} 56. b7 {[%emt 0:00:19]} Rb1 {[%emt 0:00:05]} 57. Kc6 {[%emt 0:00:03]} Ke7 {[%emt 0:00:22]} 58. Kc7 {[%emt 0:00:04]} Rc1+ {[%emt 0:00:15]} 59. Kb6 {[%emt 0:00:03]} Kd7 {[%emt 0:00:35]} 60. b8=Q {[%emt 0:00:09]} Rb1+ {[%emt 0:01:15]} 61. Ka7 {[%emt 0:00:02]} Rxb8 {[%emt 0:00:06]} 62. Kxb8 {[%emt 0:00:01]} 1/2-1/2

[Event "4NCL 2019-20"]
[Site "Daventry"]
[Date "2020.02.08"]
[Round "5"]
[White "Walton, Alan J"]
[Black "Suarez Real, Alberto"]
[Result "0-1"]
[ECO "D02"]
[WhiteElo "2123"]
[BlackElo "2449"]
[Annotator "ChessBase"]
[PlyCount "52"]
[EventDate "2020.01.11"]
[EventCountry "ENG"]
[SourceTitle "playchess.com"]
[Source "ChessBase"]
[SourceQuality "1"]
[TimeControl "40/6000:3000+30"]

1. d4 {[%emt 0:00:00]} Nf6 {[%emt 0:00:31]} 2. Bg5 {[%emt 0:00:00]} d5 {[%emt 0:00:29]} 3. e3 {[%emt 0:00:37]} c5 {[%emt 0:01:14]} 4. c3 {[%emt 0:01:06]} Nc6 {[%emt 0:02:30]} 5. Nf3 {[%emt 0:02:52]} Qb6 {[%emt 0:01:13]} 6. Qb3 {[%emt 0:07:38]} c4 {[%emt 0:02:06]} 7. Qxb6 {[%emt 0:12:39]} axb6 {[%emt 0:00:00]} 8. Nbd2 {[%emt 0:06:33]} b5 {[%emt 0:07:14]} 9. Ne5 {[%emt 0:16:35]} Nxe5 {[%emt 0:39:31]} 10. dxe5 {[%emt 0:00:00]} Nd7 {[%emt 0:00:00]} 11. Nf3 {[%emt 0:03:08]} f6 {[%emt 0:17:31]} 12. Bf4 {[%emt 0:02:36]} b4 {[%emt 0:00:36]} 13. Be2 {[%emt 0:07:08]} bxc3 {[%emt 0:02:17]} 14. bxc3 {[%emt 0:00:00]} Ra3 {[%emt 0:01:11]} 15. exf6 {[%emt 0:01:11]} gxf6 {[%emt 0:01:18]} 16. Rd1 {[%emt 0:03:51]} e5 {[%emt 0:00:46]} 17. Bg3 {[%emt 0:00:01]} Nb6 {[%emt 0:01:17]} 18. O-O {[%emt 0:07:56]} Rxa2 {[%emt 0:12:36]} 19. Rfe1 {[%emt 0:00:22]} Na4 {[%emt 0:00:13]} 20. Nxe5 {[%emt 0:01:34]} Rxe2 {[%emt 0:01:21]} 21. Rxe2 {[%emt 0:00:00]} Nxc3 {[%emt 0:00:00]} 22. Red2 {[%emt 0:00:13]} Nxd1 {[%emt 0:00:00]} 23. Rxd1 {[%emt 0:00:00]} fxe5 {[%emt 0:00:08]} 24. Bxe5 {[%emt 0:00:00]} Rg8 {[%emt 0:00:00]} 25. Rxd5 {[%emt 0:00:00]} Bd7 {[%emt 0:03:01]} 26. g3 {[%emt 0:01:39]} b5 {[%emt 0:00:03]} 0-1

[Event "4NCL 2019-20"]
[Site "Daventry"]
[Date "2020.02.08"]
[Round "5"]
[White "Head, Louise"]
[Black "Jackson, Carl"]
[Result "1-0"]
[ECO "D07"]
[WhiteElo "2100"]
[BlackElo "2046"]
[Annotator "ChessBase"]
[PlyCount "51"]
[EventDate "2020.01.11"]
[EventCountry "ENG"]
[SourceTitle "playchess.com"]
[Source "ChessBase"]
[SourceQuality "1"]
[TimeControl "40/6000:3000+30"]

1. d4 {[%emt 0:00:27]} d5 2. c4 {[%emt 0:00:06]} Nc6 3. cxd5 {[%emt 0:00:03]} Qxd5 {[%emt 0:00:02]} 4. e3 {[%emt 0:00:03]} e5 5. Nc3 {[%emt 0:00:03]} Bb4 {[%emt 0:00:02]} 6. Bd2 {[%emt 0:00:01]} Bxc3 {[%emt 0:00:07]} 7. bxc3 {[%emt 0:00:04]} Nf6 {[%emt 0:00:03]} 8. f3 {[%emt 0:00:03]} e4 {[%emt 0:00:01]} 9. c4 {[%emt 0:00:03]} Qd6 {[%emt 0:00:01]} 10. Qb1 {[%emt 0:00:02]} Bf5 {[%emt 0:00:03]} 11. f4 {[%emt 0:00:02]} O-O {[%emt 0:00:02]} 12. Ne2 {[%emt 0:00:02]} Rfe8 {[%emt 0:00:02]} 13. Qb3 {[%emt 0:14:53]} b6 {[%emt 0:00:02]} 14. Ng3 {[%emt 0:00:03]} Bg4 {[%emt 0:00:02]} 15. Bc3 {[%emt 0:00:03]} Nh5 {[%emt 0:00:02]} 16. Nxh5 {[%emt 0:00:03]} Bxh5 {[%emt 0:00:02]} 17. d5 {[%emt 0:00:03]} Ne7 {[%emt 0:00:02]} 18. g4 {[%emt 0:00:02]} Bxg4 {[%emt 0:00:03]} 19. Rg1 {[%emt 0:00:03]} Qd7 {[%emt 0:00:02]} 20. h3 {[%emt 0:00:03]} Bxh3 {[%emt 0:00:04]} 21. Rxg7+ {[%emt 0:00:22]} Kf8 {[%emt 0:00:03]} 22. Rxh7 {[%emt 0:00:03]} Bxf1 {[%emt 0:00:07]} 23. Qb2 {[%emt 0:00:04]} f6 {[%emt 0:00:02]} 24. Bxf6 {[%emt 0:00:03]} Qf5 {[%emt 0:00:05]} 25. Bxe7+ {[%emt 0:00:04]} Rxe7 {[%emt 0:00:05]} 26. Qh8# {[%emt 0:00:06]} 1-0

[Event "4NCL 2019-20"]
[Site "Daventry"]
[Date "2020.02.08"]
[Round "5"]
[White "Freeman, Gordon"]
[Black "Dicu, Dan-Alexandru"]
[Result "1/2-1/2"]
[ECO "D30"]
[WhiteElo "2088"]
[BlackElo "2106"]
[Annotator "ChessBase"]
[PlyCount "82"]
[EventDate "2020.01.11"]
[EventCountry "ENG"]
[SourceTitle "playchess.com"]
[Source "ChessBase"]
[SourceQuality "1"]
[TimeControl "40/6000:3000+30"]

1. d4 d5 2. Nf3 e6 3. c4 a6 4. g3 dxc4 5. Bg2 b5 6. a4 Bb7 7. O-O Nd7 8. b3 cxb3 9. Qxb3 Bd5 10. Qc2 c5 11. Nc3 Bc6 12. dxc5 {[%emt 0:11:16]} Ngf6 13. axb5 axb5 14. Bg5 Rxa1 15. Rxa1 Bxc5 16. Bxf6 Qxf6 17. Rb1 b4 18. Na4 Bxa4 19. Qxa4 Ke7 20. Rxb4 Bxb4 21. Qxb4+ Ke8 22. Nd4 Qe7 23. Qa4 Kf8 24. Nc6 Nb6 25. Qf4 e5 26. Nxe5 Nd7 27. Nc6 Qc5 28. Qd2 Nf6 29. Qd8+ Ne8 30. Bd5 Qd6 31. Qa5 g6 32. e4 Kg7 33. e5 Qd7 34. Qc5 Nc7 35. Qd6 Qxd6 36. exd6 Nxd5 37. d7 Kf6 38. d8=Q+ Rxd8 39. Nxd8 Nb4 40. Kg2 Nd3 41. h4 h5 1/2-1/2

[Event "4NCL 2019-20"]
[Site "Daventry"]
[Date "2020.02.08"]
[Round "5"]
[White "Leon Cazares, Gustavo"]
[Black "York-Weaving, Richard"]
[Result "0-1"]
[ECO "B22"]
[WhiteElo "2084"]
[BlackElo "2339"]
[Annotator "ChessBase"]
[PlyCount "68"]
[EventDate "2020.01.11"]
[EventCountry "ENG"]
[SourceTitle "playchess.com"]
[Source "ChessBase"]
[SourceQuality "1"]
[TimeControl "40/6000:3000+30"]

1. e4 {[%emt 0:00:00]} c5 {[%emt 0:11:14]} 2. c3 {[%emt 0:00:00]} Nf6 {[%emt 0:00:00]} 3. e5 {[%emt 0:00:00]} Nd5 {[%emt 0:00:00]} 4. Nf3 {[%emt 0:00:00]} e6 {[%emt 0:00:00]} 5. Bc4 {[%emt 0:00:00]} d6 {[%emt 0:00:00]} 6. d4 {[%emt 0:00:00]} cxd4 {[%emt 0:00:00]} 7. cxd4 {[%emt 0:00:00]} Be7 {[%emt 0:00:00]} 8. O-O {[%emt 0:00:00]} O-O {[%emt 0:00:00]} 9. Nbd2 {[%emt 0:00:21]} b6 {[%emt 0:03:43]} 10. Qe2 {[%emt 0:00:54]} Bb7 {[%emt 0:02:57]} 11. Ne4 {[%emt 0:00:54]} dxe5 {[%emt 0:03:59]} 12. dxe5 {[%emt 0:00:54]} h6 {[%emt 0:02:53]} 13. Bd2 {[%emt 0:05:32]} Nd7 {[%emt 0:02:38]} 14. Rad1 {[%emt 0:02:24]} Rc8 {[%emt 0:03:41]} 15. Rfe1 {[%emt 0:15:39]} Qc7 {[%emt 0:08:29]} 16. Rc1 {[%emt 0:00:03]} Qb8 {[%emt 0:05:03]} 17. Ng3 {[%emt 0:00:45]} Rfd8 {[%emt 0:08:34]} 18. Nh5 {[%emt 0:02:26]} Bf8 {[%emt 0:02:05]} 19. Nh4 {[%emt 0:09:45]} Nxe5 {[%emt 0:27:07]} 20. Bxd5 {[%emt 0:40:04]} Rxc1 {[%emt 0:01:44]} 21. Bxc1 {[%emt 0:00:00]} Rxd5 {[%emt 0:05:41]} 22. Bxh6 {[%emt 0:00:00]} Qd8 {[%emt 0:00:21]} 23. Nf3 {[%emt 0:06:33]} Nxf3+ {[%emt 0:04:07]} 24. Qxf3 {[%emt 0:00:00]} Re5 {[%emt 0:02:55]} 25. Qc3 {[%emt 0:02:49]} Rxe1+ {[%emt 0:00:00]} 26. Qxe1 {[%emt 0:00:00]} gxh6 {[%emt 0:00:00]} 27. f3 {[%emt 0:00:00]} Qg5 {[%emt 0:00:20]} 28. Ng3 {[%emt 0:00:00]} Bc5+ {[%emt 0:00:00]} 29. Kh1 {[%emt 0:00:00]} h5 {[%emt 0:00:57]} 30. b4 {[%emt 0:00:00]} Bd6 {[%emt 0:00:01]} 31. Qd1 {[%emt 0:00:00]} Bd5 {[%emt 0:00:08]} 32. Qe1 {[%emt 0:00:00]} Bxb4 {[%emt 0:00:20]} 33. Qa1 {[%emt 0:00:00]} h4 {[%emt 0:00:00]} 34. f4 {[%emt 0:00:00]} Qg4 {[%emt 0:00:13]} 0-1

[Event "4NCL 2019-20"]
[Site "Daventry"]
[Date "2020.02.08"]
[Round "5"]
[White "Jackson, Sheila"]
[Black "Sowray, Peter J"]
[Result "1/2-1/2"]
[ECO "C49"]
[WhiteElo "2064"]
[BlackElo "2272"]
[Annotator "NA"]
[PlyCount "75"]
[EventDate "2020.01.11"]
[EventCountry "ENG"]
[SourceTitle "playchess.com"]
[Source "ChessBase"]
[SourceQuality "1"]
[TimeControl "40/6000:3000+30"]

1. e4 {[%emt 0:00:00]} e5 {[%emt 0:00:00]} 2. Nf3 {[%emt 0:00:00]} Nc6 {[%emt 0:00:00]} 3. Nc3 {[%emt 0:00:00]} Nf6 {[%emt 0:00:00]} 4. Bb5 {[%emt 0:00:00]} Bb4 {[%emt 0:00:00]} 5. d3 {[%emt 0:00:00]} d6 {[%emt 0:00:29]} 6. O-O $11 {[%emt 0:00:00]} Bxc3 {[%emt 0:00:00]} 7. bxc3 {[%emt 0:00:00]} O-O {[%emt 0:00:00]} 8. Bxc6 {[%emt 0:00:00]} bxc6 {[%emt 0:00:00]} 9. Bg5 {[%emt 0:00:00]} h6 {[%emt 0:00:00]} 10. Bh4 {[%emt 0:00:00]} Bg4 {[%emt 0:00:00]} 11. h3 {[%emt 0:00:00]} Bxf3 {[%emt 0:00:00]} 12. Qxf3 {[%emt 0:00:00]} g5 {[%emt 0:00:00]} 13. Bg3 {[%emt 0:00:00]} Qe7 {[%emt 0:00:00]} 14. Rfe1 {[%emt 0:00:00]} Nd7 {[%emt 0:02:16]} 15. d4 {[%emt 0:00:00]} f6 {[%emt 0:03:38]} 16. Rab1 {[%emt 0:07:46]} Nb6 {[%emt 0:30:59]} 17. Qf5 Kg7 18. h4 Qf7 19. hxg5 hxg5 20. dxe5 {[%emt 0:28:38]} dxe5 {[%emt 0:00:00]} 21. Bxe5 {[%emt 0:05:01]} fxe5 22. Qxg5+ {[%emt 0:00:00]} Qg6 23. Qxe5+ {[%emt 0:00:00]} Qf6 24. Qxc7+ {[%emt 0:00:00]} Rf7 25. Qg3+ {[%emt 0:00:00]} Qg6 26. Qe5+ {[%emt 0:00:00]} Kg8 27. Re3 {[%emt 0:00:00]} Nc4 28. Rb8+ {[%emt 0:00:00]} Rf8 29. Qg3 {[%emt 0:00:00]} Qxg3 30. Rxg3+ {[%emt 0:00:00]} Kh7 31. Rb7+ {[%emt 0:00:00]} Kh6 32. Rh3+ {[%emt 0:00:00]} Kg6 33. Rbh7 {[%emt 0:00:00]} Ne5 34. R3h6+ {[%emt 0:00:00]} Kg5 35. Rh5+ {[%emt 0:00:00]} Kg6 36. R5h6+ {[%emt 0:00:00]} Kg5 37. Rh5+ {[%emt 0:00:00]} Kg6 38. R5h6+ {[%emt 0:00:00]} 1/2-1/2

[Event "4NCL 2019-20"]
[Site "Daventry"]
[Date "2020.02.08"]
[Round "5"]
[White "Bhatia, Kanwal K"]
[Black "Latham, David"]
[Result "0-1"]
[ECO "B17"]
[WhiteElo "2037"]
[BlackElo "2064"]
[Annotator "NA"]
[PlyCount "78"]
[EventDate "2020.01.11"]
[EventCountry "ENG"]
[SourceTitle "playchess.com"]
[Source "ChessBase"]
[SourceQuality "1"]
[TimeControl "40/6000:3000+30"]

1. e4 {[%emt 0:00:00]} c6 {[%emt 0:00:00]} 2. d4 {[%emt 0:00:00]} d5 {[%emt 0:00:00]} 3. Nd2 {[%emt 0:00:00]} dxe4 4. Nxe4 {[%emt 0:00:00]} Nd7 {[%emt 0:00:00]} 5. Nf3 $11 {[%emt 0:00:43]} Ndf6 {[%emt 0:00:00]} 6. Ng3 {[%emt 0:04:02]} e6 {[%emt 0:01:16]} 7. Bd3 {[%emt 0:01:05]} Bd6 {[%emt 0:00:00]} 8. O-O {[%emt 0:00:46]} Ne7 {[%emt 0:04:12]} 9. Re1 {[%emt 0:00:46]} O-O {[%emt 0:00:05]} 10. Ne5 {[%emt 0:01:50]} Ng6 {[%emt 0:01:22]} 11. Bg5 {[%emt 0:03:04]} Be7 {[%emt 0:00:12]} 12. c3 {[%emt 0:05:20]} Nd5 {[%emt 0:02:30]} 13. Bxe7 Qxe7 {[%emt 0:03:15]} 14. Bc2 {[%emt 0:12:11]} Nxe5 15. dxe5 Nf4 {[%emt 0:10:57]} 16. Qd4 Ng6 17. Rad1 b6 18. Ne4 Bb7 19. Nd6 Rad8 20. Qe3 Ba8 21. Rd2 c5 22. Red1 Bc6 23. b4 cxb4 24. cxb4 Qh4 25. Rd4 Qe7 26. a3 Bd5 27. f4 f6 28. Qg3 fxe5 29. fxe5 Nxe5 30. Qxe5 Qxd6 31. Qh5 h6 32. Qg6 Rf6 33. Qh7+ Kf8 34. Bg6 Qe5 35. Qh8+ Ke7 36. Qxg7+ Kd6 37. Qh7 Qe2 38. R4d2 Qe3+ 39. Kh1 Qxd2 0-1

[Event "4NCL 2019-20"]
[Site "Daventry"]
[Date "2020.02.08"]
[Round "5"]
[White "Skulte, Christopher"]
[Black "Palliser, Richard J D"]
[Result "0-1"]
[ECO "B06"]
[WhiteElo "2033"]
[BlackElo "2399"]
[Annotator "ChessBase"]
[PlyCount "88"]
[EventDate "2020.01.11"]
[EventCountry "ENG"]
[SourceTitle "playchess.com"]
[Source "ChessBase"]
[SourceQuality "1"]
[TimeControl "40/6000:3000+30"]

1. e4 {[%emt 0:00:00]} g6 {[%emt 0:00:00]} 2. d4 {[%emt 0:00:00]} Bg7 {[%emt 0:00:00]} 3. Be3 {[%emt 0:00:00]} d6 {[%emt 0:00:00]} 4. Nc3 {[%emt 0:00:00]} a6 {[%emt 0:00:00]} 5. Qd2 {[%emt 0:00:44]} b5 {[%emt 0:00:00]} 6. a4 {[%emt 0:06:04]} b4 {[%emt 0:00:00]} 7. Nd5 {[%emt 0:00:00]} a5 {[%emt 0:00:00]} 8. c3 {[%emt 0:05:05]} c6 {[%emt 0:10:43]} 9. Nf4 {[%emt 0:00:33]} bxc3 {[%emt 0:00:22]} 10. bxc3 {[%emt 0:02:48]} Nf6 {[%emt 0:00:18]} 11. f3 {[%emt 0:04:26]} O-O {[%emt 0:00:00]} 12. Nd3 {[%emt 0:09:19]} Nbd7 {[%emt 0:00:33]} 13. Bh6 {[%emt 0:01:05]} Bxh6 {[%emt 0:04:38]} 14. Qxh6 {[%emt 0:00:00]} e5 {[%emt 0:00:00]} 15. Ne2 {[%emt 0:02:05]} Ba6 {[%emt 0:00:00]} 16. Qd2 {[%emt 0:07:01]} Bxd3 {[%emt 0:20:36]} 17. Qxd3 {[%emt 0:00:27]} d5 {[%emt 0:00:00]} 18. g3 {[%emt 0:05:14]} exd4 {[%emt 0:01:13]} 19. cxd4 {[%emt 0:04:42]} dxe4 {[%emt 0:07:10]} 20. fxe4 {[%emt 0:02:16]} Nc5 {[%emt 0:11:18]} 21. Qc2 {[%emt 0:01:43]} Ncxe4 {[%emt 0:00:00]} 22. Bg2 {[%emt 0:00:00]} Re8 {[%emt 0:03:45]} 23. O-O {[%emt 0:00:32]} Rc8 {[%emt 0:00:53]} 24. Rf4 {[%emt 0:06:28]} Nd6 {[%emt 0:05:26]} 25. Bh3 {[%emt 0:05:56]} Rc7 {[%emt 0:00:15]} 26. Rc1 {[%emt 0:03:48]} Nd5 {[%emt 0:07:28]} 27. Rf3 {[%emt 0:00:57]} Nb4 {[%emt 0:04:17]} 28. Qd2 {[%emt 0:08:32]} Ne4 {[%emt 0:00:00]} 29. Qh6 {[%emt 0:01:31]} Ng5 {[%emt 0:01:04]} 30. Rf2 {[%emt 0:02:11]} Nd3 {[%emt 0:00:00]} 31. Rcf1 {[%emt 0:01:08]} Nxf2 {[%emt 0:00:00]} 32. Rxf2 {[%emt 0:00:00]} Nxh3+ 33. Qxh3 {[%emt 0:00:00]} Rce7 {[%emt 0:03:04]} 34. Nf4 {[%emt 0:00:16]} Qxd4 {[%emt 0:00:00]} 35. Qh4 {[%emt 0:00:14]} Re1+ {[%emt 0:02:30]} 36. Kg2 {[%emt 0:00:00]} Qe4+ {[%emt 0:00:00]} 37. Kh3 {[%emt 0:00:00]} Qf5+ {[%emt 0:00:00]} 38. Kg2 {[%emt 0:00:00]} g5 {[%emt 0:01:55]} 39. Qh5 {[%emt 0:00:00]} Qe4+ {[%emt 0:00:57]} 40. Kh3 {[%emt 0:00:00]} gxf4 {[%emt 0:02:36]} 41. Rxf4 {[%emt 0:49:24]} Qe6+ {[%emt 0:50:05]} 42. Rg4+ {[%emt 0:00:10]} Kh8 {[%emt 0:06:30]} 43. Qg5 {[%emt 0:00:44]} Qe5 {[%emt 0:01:01]} 44. Qh6 {[%emt 0:00:15]} Rg8 {[%emt 0:00:33]} 0-1

[Event "4NCL 2019-20"]
[Site "Daventry"]
[Date "2020.02.08"]
[Round "5"]
[White "Varney, Zoe"]
[Black "Steil-Antoni, Fiona"]
[Result "0-1"]
[ECO "C54"]
[WhiteElo "2004"]
[BlackElo "2121"]
[Annotator "ChessBase"]
[PlyCount "78"]
[EventDate "2020.01.11"]
[EventCountry "ENG"]
[SourceTitle "playchess.com"]
[Source "ChessBase"]
[SourceQuality "1"]
[TimeControl "40/6000:3000+30"]

1. e4 {[%emt 0:00:00]} e5 {[%emt 0:00:54]} 2. Nf3 {[%emt 0:00:00]} Nc6 {[%emt 0:00:00]} 3. Bc4 {[%emt 0:00:00]} Bc5 {[%emt 0:00:00]} 4. c3 {[%emt 0:00:00]} Nf6 {[%emt 0:00:00]} 5. d4 {[%emt 0:00:00]} exd4 {[%emt 0:00:00]} 6. cxd4 {[%emt 0:00:00]} Bb4+ {[%emt 0:00:00]} 7. Bd2 {[%emt 0:00:00]} Nxe4 {[%emt 0:00:00]} 8. Bxb4 {[%emt 0:00:00]} Nxb4 {[%emt 0:00:00]} 9. Bxf7+ {[%emt 0:00:00]} Kxf7 {[%emt 0:00:00]} 10. Qb3+ {[%emt 0:00:00]} Kf8 {[%emt 0:00:00]} 11. Qxb4+ {[%emt 0:00:00]} Qe7 {[%emt 0:00:00]} 12. Qxe7+ {[%emt 0:00:00]} Kxe7 {[%emt 0:00:00]} 13. Nc3 {[%emt 0:02:21]} Nxc3 {[%emt 0:00:00]} 14. bxc3 {[%emt 0:00:00]} d6 {[%emt 0:00:00]} 15. Nd2 {[%emt 0:09:45]} Bf5 {[%emt 0:00:22]} 16. f3 {[%emt 0:00:59]} Kd7 {[%emt 0:01:14]} 17. Kf2 {[%emt 0:01:54]} Rhe8 {[%emt 0:12:46]} 18. Rhe1 {[%emt 0:00:39]} a5 {[%emt 0:04:29]} 19. Rxe8 {[%emt 0:13:39]} Rxe8 {[%emt 0:06:08]} 20. Re1 {[%emt 0:04:33]} Rxe1 {[%emt 0:01:40]} 21. Kxe1 {[%emt 0:00:00]} Kc6 {[%emt 0:02:48]} 22. Kd1 {[%emt 0:00:02]} b5 {[%emt 0:06:26]} 23. Kc1 {[%emt 0:15:11]} b4 {[%emt 0:13:21]} 24. Kb2 {[%emt 0:14:21]} Kb5 {[%emt 0:04:02]} 25. c4+ {[%emt 0:04:30]} Kb6 {[%emt 0:01:39]} 26. Kb3 {[%emt 0:06:03]} c5 {[%emt 0:05:59]} 27. d5 {[%emt 0:02:54]} Bd7 {[%emt 0:02:51]} 28. Ne4 {[%emt 0:11:02]} Kc7 {[%emt 0:02:55]} 29. Ng5 {[%emt 0:02:29]} a4+ {[%emt 0:01:47]} 30. Kb2 {[%emt 0:00:54]} Bf5 {[%emt 0:02:03]} 31. Ne6+ {[%emt 0:01:33]} Kd7 {[%emt 0:00:01]} 32. Nxg7 {[%emt 0:02:18]} Bd3 {[%emt 0:00:00]} 33. Ne6 {[%emt 0:01:28]} Bxc4 {[%emt 0:00:10]} 34. Nf8+ {[%emt 0:00:40]} Ke7 {[%emt 0:00:00]} 35. Nxh7 {[%emt 0:00:00]} a3+ {[%emt 0:01:16]} 36. Ka1 {[%emt 0:00:05]} Bxd5 {[%emt 0:00:00]} 37. Ng5 {[%emt 0:00:00]} c4 {[%emt 0:02:24]} 38. Ne4 {[%emt 0:01:10]} c3 {[%emt 0:00:43]} 39. Kb1 {[%emt 0:00:09]} Bxa2+ {[%emt 0:01:16]} 0-1